bitfinex/quotes_ETHUSD_20260213
["timestamp","ask_amount","ask_price","bid_price","bid_amount"]
[1771022626615,2.91184269,2051.7,2051.3,0.001]
[1771022626828,2.91184269,2051.6,2051.3,0.001]
[1771022627145,2.91184269,2051.5,2051.3,0.001]
[1771022627347,1.2411257,2051.8,2051.3,0.001]
[1771022627523,2.91232745,2051.7,2051.3,0.001]
[1771022627715,2.91232745,2051.6,2051.3,0.49023089]
[1771022627906,2.91232745,2051.5,2051.3,0.49023089]
[1771022628114,2.91232745,2051.4,2051.3,0.49023089]
[1771022628830,2.91232745,2051.4,2051.3,0.001]
[1771022630849,0.0011,2051.8,2051.4,0.48923089]
[1771022633038,0.0011,2051.8,2051.5,0.48923089]
[1771022633828,0.0011,2051.8,2051.3,0.49023089]
[1771022636438,1.21954234,2051.8,2051.3,0.49023089]
[1771022637452,0.0011,2051.8,2051.3,0.49023089]
[1771022637659,0.0011,2051.8,2051.3,0.001]
[1771022637858,0.02263821,2051.8,2051.3,0.001]
[1771022638472,1.21850173,2051.7,2051.3,0.001]
[1771022640553,1.24003994,2051.7,2051.3,0.001]
[1771022642245,1.21850173,2051.7,2051.3,0.001]
[1771022642468,4.87492707,2051.8,2051.3,0.001]
[1771022642667,4.89646528,2051.8,2051.3,0.001]
[1771022642868,4.87492707,2051.8,2051.3,0.49023089]
[1771022646257,1.21954234,2051.8,2051.3,0.49023089]
[1771022651875,0.0011,2051.8,2051.3,0.49023089]
[1771022652760,0.0011,2051.8,2051.4,0.48923089]
[1771022653951,0.0011,2051.8,2051.4,0.33120602]
[1771022662992,0.0011,2051.8,2051.5,0.46224077]
[1771022686411,0.0011,2051.8,2051.5,4.28224077]
[1771022688816,0.0011,2051.8,2051.5,4.30572485]
[1771022689109,0.0011,2051.8,2051.6,0.48572485]
[1771022689890,0.0011,2051.8,2051.5,3.82]
[1771022692327,0.0011,2051.8,2051.4,3.82]
[1771022693113,0.18066308,2051.8,2051.4,3.82]
[1771022694220,1.21850173,2051.7,2051.4,3.82]
[1771022695711,1.39806481,2051.7,2051.4,3.82]
[1771022697730,9.10777439,2051.7,2051.3,0.001]
[1771022701909,0.17956308,2051.6,2051.3,0.001]
[1771022702110,8.92821131,2051.7,2051.3,0.001]
[1771022702642,8.92821131,2051.7,2051.3,0.47555813]
[1771022703021,1.21850173,2051.7,2051.3,0.47555813]
[1771022703435,2.87256751,2051.8,2051.3,0.47555813]
[1771022704121,3.05213059,2051.8,2051.3,0.001]
[1771022704322,2.87256751,2051.8,2051.3,0.47555813]
[1771022708150,3.05213059,2051.8,2051.3,0.001]
[1771022708828,1.21873933,2051.3,2051.1,0.001]
[1771022709027,7.70970958,2051.2,2050.9,0.001]
[1771022709234,7.88927266,2051.2,2050.7,0.001]
[1771022710151,7.70970958,2051.0,2050.7,0.001]
[1771022710447,9.37370958,2051.0,2050.7,0.001]
[1771022711056,1.21897703,2050.9,2050.7,0.001]
[1771022711433,1.21897703,2050.9,2050.6,0.001]
[1771022712652,1.21897703,2050.9,2050.5,0.001]
[1771022712856,7.71598708,2050.8,2050.5,0.001]
[1771022713053,2.88809591,2050.7,2050.5,0.001]
[1771022713943,2.88809591,2050.7,2050.4,0.001]
[1771022713944,3.06765899,2050.7,2050.4,0.001]
[1771022715056,0.17956308,2050.6,2050.4,0.001]
[1771022715254,7.71598708,2050.3,2049.5,0.001]
[1771022715438,0.46617494,2050.2,2049.5,0.001]
[1771022715634,7.71598708,2050.1,2049.6,0.47555813]
[1771022715839,2.14417494,2050.0,2049.6,0.001]
[1771022716025,0.46617494,2049.9,2049.6,0.001]
[1771022716636,1.678,2050.0,2049.6,0.001]
[1771022716839,1.678,2050.0,2049.9,0.001]
[1771022717038,2.14417494,2050.0,2049.6,0.001]
[1771022717351,1.68574662,2049.9,2049.6,0.001]
[1771022719346,0.46617494,2049.8,2049.6,0.001]
[1771022720960,8.93555876,2049.9,2049.6,0.001]
[1771022722456,1.69,2049.8,2049.6,0.001]
[1771022723567,1.21969068,2049.7,2049.6,0.001]
[1771022725539,1.21969068,2049.7,2049.5,0.001]
[1771022725740,1.699,2049.6,2049.5,0.001]
[1771022730086,1.702,2050.0,2049.5,0.001]
[1771022730293,0.878,2050.1,2049.5,0.47555813]
[1771022730780,0.0011,2050.2,2049.5,0.47555813]
[1771022730955,1.7041,2050.2,2049.5,0.47555813]
[1771022731460,1.7031,2050.2,2049.5,0.47555813]
[1771022732153,0.0011,2050.2,2049.5,0.47555813]
[1771022732584,0.0011,2050.2,2049.5,0.001]
[1771022732761,0.0011,2050.2,2049.6,0.45108085]
[1771022733979,0.0011,2050.2,2049.6,7.71598708]
[1771022734178,0.0011,2050.4,2049.7,0.45108085]
[1771022734379,0.0011,2050.4,2049.8,0.45108085]
[1771022735657,0.0011,2050.4,2049.8,7.71598708]
[1771022735858,0.0011,2050.4,2049.9,0.45108085]
[1771022736664,0.0011,2050.4,2050.0,0.45108085]
[1771022738589,0.0011,2050.4,2050.1,0.46605919]
[1771022741580,0.0011,2050.7,2050.1,0.46605919]
[1771022744284,0.0011,2050.7,2050.3,0.46605919]
[1771022749098,0.0011,2050.7,2050.2,1.075]
[1771022749671,0.0011,2050.7,2050.3,0.46605919]
[1771022751497,0.0011,2050.9,2050.7,0.46605919]
[1771022751992,0.0011,2051.3,2050.7,0.46605919]
[1771022753016,0.0011,2051.3,2050.6,8.79198708]
[1771022753017,0.0011,2051.3,2050.8,7.71598708]
[1771022753194,0.0011,2051.3,2050.9,0.46605919]
[1771022753713,0.0011,2051.3,2051.0,0.46605919]
[1771022753881,0.0011,2051.8,2051.0,8.79298708]
[1771022754077,0.0011,2051.8,2051.1,0.46605919]
[1771022755074,0.0011,2051.2,2051.1,0.46605919]
[1771022755310,0.0011,2051.8,2051.1,0.46605919]
[1771022755605,0.0011,2051.4,2051.1,0.46605919]
[1771022755912,0.0011,2051.8,2051.1,0.46605919]
[1771022757874,0.0011,2051.8,2051.3,0.46605919]
[1771022758276,0.0011,2051.8,2051.5,0.46605919]
[1771022759710,0.0011,2052.0,2051.5,0.46605919]
[1771022762276,0.0011,2052.3,2051.9,0.47600441]
[1771022762487,0.0011,2052.3,2051.8,1.085]
[1771022762695,0.4789133,2052.3,2051.4,1.21867531]
[1771022762908,0.4789133,2052.3,2051.5,0.47600441]
[1771022763216,0.4789133,2052.3,2051.7,0.47600441]
[1771022763217,0.0011,2052.3,2051.7,0.47600441]
[1771022766482,0.4789133,2052.3,2051.7,0.47600441]
[1771022766826,0.4789133,2052.3,2051.6,1.085]
[1771022770724,0.4778133,2052.2,2051.6,1.085]
[1771022770930,0.4778133,2052.2,2051.5,2.71600441]
[1771022772909,0.4778133,2052.1,2051.5,2.71600441]
[1771022774344,0.4778133,2052.1,2051.5,0.47600441]
[1771022775004,0.4778133,2052.1,2051.4,2.24]
[1771022775221,0.4778133,2052.1,2051.4,2.71600441]
[1771022775426,0.4778133,2052.1,2051.5,0.47600441]
[1771022777231,0.4789133,2052.3,2051.5,0.47600441]
[1771022777521,2.89417906,2052.2,2051.5,0.47600441]
[1771022777723,0.4789133,2052.3,2051.5,0.47600441]
[1771022777906,2.89411291,2052.2,2051.5,0.47600441]
[1771022778111,0.4789133,2052.3,2051.5,0.47600441]
[1771022778312,2.89411943,2052.2,2051.5,0.47600441]
[1771022778510,0.4789133,2052.3,2051.5,0.47600441]
[1771022778736,2.89580148,2052.2,2051.5,0.47600441]
[1771022779031,0.4789133,2052.3,2051.5,0.47600441]
[1771022779231,2.89540474,2052.2,2051.5,0.47600441]
[1771022779403,2.89540474,2052.1,2051.5,0.47600441]
[1771022779733,1.69706842,2052.3,2051.5,0.47600441]
[1771022779917,2.89729319,2052.2,2051.5,0.47600441]
[1771022780118,2.89729319,2052.1,2051.5,0.47600441]
[1771022780299,0.4778133,2052.2,2051.5,0.47600441]
[1771022780504,2.89989523,2052.1,2051.5,0.47600441]
[1771022780715,0.4778133,2052.2,2051.5,0.47600441]
[1771022780936,2.89989515,2052.1,2051.5,0.47600441]
[1771022781103,0.4778133,2052.2,2051.5,0.47600441]
[1771022781304,2.89989549,2052.1,2051.5,0.47600441]
[1771022781525,2.89989549,2052.0,2051.5,0.47600441]
[1771022781841,0.4778133,2052.2,2051.5,0.47600441]
[1771022782029,2.90354868,2052.1,2051.5,0.47600441]
[1771022782232,2.90354868,2052.0,2051.5,0.47600441]
[1771022782404,0.4778133,2052.2,2051.5,0.47600441]
[1771022782605,2.90552901,2052.1,2051.5,0.47600441]
[1771022782829,2.90552901,2052.0,2051.5,0.47600441]
[1771022783029,0.4778133,2052.2,2051.5,0.47600441]
[1771022783246,2.90530899,2052.1,2051.5,0.47600441]
[1771022783542,2.90530899,2052.0,2051.5,0.47600441]
[1771022783750,2.90530899,2051.9,2051.5,0.47600441]
[1771022783908,0.4778133,2052.2,2051.5,0.47600441]
[1771022784108,2.90626826,2052.1,2051.5,0.47600441]
[1771022784336,2.90626826,2052.0,2051.5,0.47600441]
[1771022784509,2.90626826,2051.9,2051.5,0.47600441]
[1771022784710,0.4789133,2052.3,2051.5,0.47600441]
[1771022784911,2.90718515,2052.2,2051.5,0.47600441]
[1771022785113,2.90718515,2052.1,2051.5,0.47600441]
[1771022785312,2.90718515,2052.0,2051.5,0.47600441]
[1771022785512,2.90718515,2051.9,2051.5,0.47600441]
[1771022785731,0.4789133,2052.3,2051.5,0.47600441]
[1771022785941,2.90838421,2052.2,2051.5,0.47600441]
[1771022786250,2.90838421,2052.1,2051.5,0.47600441]
[1771022786555,2.90838421,2052.0,2051.5,0.47600441]
[1771022786727,0.4789133,2052.3,2051.5,0.47600441]
[1771022786728,2.90838421,2051.9,2051.5,0.47600441]
[1771022786914,0.4789133,2052.3,2051.5,0.47600441]
[1771022787114,2.90922678,2052.2,2051.5,0.47600441]
[1771022787315,0.4789133,2052.3,2051.5,0.47600441]
[1771022788019,0.4778133,2052.2,2051.5,0.47600441]
[1771022792021,0.47317221,2052.1,2051.2,0.001]
[1771022792345,1.21832358,2052.0,2051.2,0.001]
[1771022792547,7.70531875,2051.8,2051.2,0.001]
[1771022792849,0.47317221,2051.5,2051.0,0.001]
[1771022793222,0.47317221,2051.3,2050.6,0.001]
[1771022794839,0.47317221,2051.1,2050.6,0.001]
[1771022797848,0.47317221,2051.0,2050.6,0.001]
[1771022798835,1.2188844,2051.1,2050.6,0.001]
[1771022799233,0.48313186,2051.0,2050.6,0.001]
[1771022801453,0.48313186,2051.2,2050.6,0.001]
[1771022801642,1.21853054,2051.7,2050.7,0.48983271]
[1771022801823,1.668,2051.8,2050.9,0.48983271]
[1771022802025,0.48313186,2051.7,2050.9,0.48983271]
[1771022804058,2.88541703,2051.9,2050.9,0.48983271]
[1771022804271,0.0011,2051.4,2050.9,0.48983271]
[1771022806271,0.0011,2051.4,2050.8,7.70531875]
[1771022806453,8.18845061,2051.3,2050.6,0.001]
[1771022806632,0.48313186,2051.2,2050.6,0.001]
[1771022808266,0.48313186,2051.0,2050.6,0.001]
[1771022808632,0.48313186,2050.8,2050.6,0.001]
[1771022811146,0.48313186,2050.7,2050.4,0.001]
[1771022812859,2.15313186,2050.9,2050.4,0.001]
[1771022813046,3.37214543,2050.9,2050.4,0.001]
[1771022813241,2.15313186,2050.9,2050.4,0.001]
[1771022814070,0.48313186,2050.9,2050.4,0.001]
[1771022814381,2.15713186,2050.9,2050.4,0.001]
[1771022814944,1.674,2050.9,2050.4,0.001]
[1771022815140,1.674,2050.9,2050.4,0.49083271]
[1771022815369,1.675,2051.0,2050.4,0.49083271]
[1771022816169,1.21889166,2051.1,2050.4,0.49083271]
[1771022816478,2.89389166,2051.1,2050.4,0.49083271]
[1771022816846,0.48313186,2051.0,2050.4,0.001]
[1771022817152,2.89389166,2051.1,2050.4,0.49083271]
[1771022817841,3.37702352,2051.1,2050.4,2.8e-07]
[1771022818047,0.48313186,2051.0,2050.4,2.8e-07]
[1771022819470,2.89389166,2051.1,2050.4,2.8e-07]
[1771022819471,3.37702352,2051.1,2050.4,2.8e-07]
[1771022819673,0.48313186,2051.0,2050.4,2.8e-07]
[1771022820972,1.68810732,2051.3,2050.4,2.8e-07]
[1771022821175,0.46824206,2051.1,2050.4,2.8e-07]
[1771022825148,1.676,2051.2,2050.4,2.8e-07]
[1771022825978,2.14424206,2051.2,2050.4,2.8e-07]
[1771022828089,0.46824206,2051.1,2050.4,2.8e-07]
[1771022829180,0.46824206,2051.2,2050.4,2.8e-07]
[1771022832360,0.0011,2051.3,2050.4,2.8e-07]
[1771022832560,0.46934206,2051.3,2050.4,2.8e-07]
[1771022834995,0.0011,2051.3,2050.4,2.8e-07]
[1771022835293,0.0011,2051.3,2050.6,0.49002185]
[1771022836897,0.0011,2051.3,2050.7,0.49002185]
[1771022838212,0.0011,2051.3,2050.8,0.49002185]
[1771022838376,0.0011,2051.3,2050.9,0.49002185]
[1771022838698,0.0011,2051.5,2051.0,0.49002185]
[1771022838901,0.0011,2051.5,2051.1,0.49002185]
[1771022840584,0.0011,2051.5,2051.2,0.49002185]
[1771022841402,0.0011,2051.5,2051.0,0.49002185]
[1771022841606,0.0011,2051.5,2051.2,0.49002185]
[1771022841975,0.0011,2051.6,2051.2,0.49002185]
[1771022843983,0.0011,2051.6,2051.3,0.49002185]
[1771022845407,0.0011,2051.6,2051.4,0.49002185]
[1771022845996,0.0011,2051.9,2051.6,0.49002185]
[1771022847197,0.0011,2051.9,2051.7,0.49002185]
[1771022850320,0.0011,2052.1,2051.7,0.49002185]
[1771022851197,0.49539061,2052.1,2051.5,1.54441167]
[1771022851522,0.49539061,2052.1,2051.1,2.70541167]
[1771022851696,0.49539061,2052.1,2051.2,1.083]
[1771022852025,0.49429061,2052.0,2051.2,1.083]
[1771022855496,0.49429061,2052.0,2051.2,1.54841167]
[1771022855717,0.49429061,2051.9,2051.2,1.083]
[1771022858233,0.47940643,2051.8,2051.2,1.083]
[1771022858721,0.47940643,2051.7,2051.2,1.083]
[1771022859103,0.47940643,2051.7,2051.0,0.878]
[1771022859633,0.47940643,2051.5,2050.9,0.001]
[1771022861310,0.47940643,2051.3,2050.9,0.001]
[1771022862743,0.47940643,2051.1,2050.9,0.001]
[1771022864252,5.35449166,2051.3,2050.9,0.001]
[1771022864558,2.90141955,2051.2,2050.9,0.001]
[1771022864744,1.69814576,2051.3,2050.9,0.001]
[1771022864928,2.90142206,2051.2,2050.9,0.001]
[1771022865130,0.47940643,2051.2,2050.9,0.001]
[1771022866223,2.90157245,2051.1,2050.9,0.001]
[1771022866423,0.47940643,2051.2,2050.9,0.001]
[1771022866642,2.90129828,2051.1,2050.9,0.001]
[1771022866843,0.47940643,2051.2,2050.9,0.001]
[1771022867042,2.90130239,2051.1,2050.9,0.001]
[1771022867242,0.47940643,2051.2,2050.9,0.001]
[1771022867447,2.90081765,2051.1,2050.9,0.001]
[1771022867635,0.47940643,2051.2,2050.9,0.001]
[1771022867834,2.90081795,2051.1,2050.9,0.001]
[1771022868036,0.47940643,2051.2,2050.9,0.001]
[1771022868250,2.90101224,2051.1,2050.9,0.001]
[1771022868460,0.47940643,2051.2,2050.9,0.001]
[1771022868662,3.3796901,2051.1,2050.9,0.001]
[1771022868830,0.47940643,2051.1,2050.9,0.001]
[1771022873550,1.69819206,2051.3,2050.9,0.001]
[1771022873732,4.56505646,2051.2,2050.9,0.001]
[1771022873937,1.668,2051.2,2050.9,0.001]
[1771022874754,0.47940643,2051.3,2050.9,0.001]
[1771022874940,2.89677581,2051.2,2050.9,0.001]
[1771022875144,2.14740643,2051.3,2050.9,0.001]
[1771022875456,2.14840643,2051.3,2050.9,0.001]
[1771022875752,1.669,2051.3,2050.9,0.001]
[1771022875961,2.14840643,2051.3,2050.9,0.001]
[1771022876257,1.669,2051.3,2050.9,0.001]
[1771022879632,2.14840643,2051.3,2050.9,0.001]
[1771022879937,0.47940643,2051.3,2050.9,0.001]
[1771022880356,1.21864434,2051.5,2050.9,0.47031855]
[1771022880555,2.90036318,2051.4,2050.9,0.47031855]
[1771022880758,2.90036318,2051.3,2050.9,0.001]
[1771022880938,1.69805077,2051.5,2050.9,0.001]
[1771022881135,3.35638607,2051.4,2050.9,0.001]
[1771022881336,2.90037381,2051.3,2050.9,0.001]
[1771022882261,3.35638607,2051.3,2050.9,0.001]
[1771022882466,2.90037381,2051.2,2050.9,0.001]
[1771022882666,3.35638607,2051.2,2050.9,0.001]
[1771022882864,0.45601226,2051.2,2050.9,0.001]
[1771022884492,3.36099333,2051.1,2050.9,0.001]
[1771022884673,0.45601226,2051.1,2050.9,0.001]
[1771022886277,2.90641794,2051.0,2050.9,0.001]
[1771022886467,1.21862052,2051.5,2050.9,0.48603827]
[1771022886775,2.90770298,2051.4,2050.9,0.48603827]
[1771022886963,2.90770298,2051.3,2050.9,0.48603827]
[1771022887151,2.90770298,2051.2,2050.9,0.48603827]
[1771022887345,1.21862052,2051.5,2050.9,0.48603827]
[1771022887346,2.90770298,2051.1,2050.9,0.48603827]
[1771022887679,1.21862052,2051.5,2050.9,0.48603827]
[1771022887860,2.9093509,2051.4,2050.9,0.48603827]
[1771022888060,2.9093509,2051.3,2050.9,0.48603827]
[1771022888260,2.9093509,2051.2,2050.9,0.48603827]
[1771022888456,2.9093509,2051.1,2050.9,0.48603827]
[1771022888669,2.9093509,2051.0,2050.9,0.48603827]
[1771022888975,2.9093509,2051.0,2050.9,0.001]
[1771022889277,2.91265805,2051.0,2050.9,0.001]
[1771022891186,0.45601226,2051.4,2050.9,0.001]
[1771022891686,0.45601226,2051.3,2050.9,0.001]
[1771022892982,1.67476152,2051.3,2050.9,0.001]
[1771022893771,0.45601226,2051.2,2050.9,0.001]
[1771022897469,1.21874926,2051.3,2050.9,0.001]
[1771022897782,3.34973909,2051.4,2050.9,0.001]
[1771022898496,2.89372683,2051.4,2050.9,0.001]
[1771022898788,2.89372683,2051.4,2050.9,0.48603827]
[1771022899476,2.89368012,2051.4,2050.9,0.48603827]
[1771022900792,2.89368012,2051.4,2050.9,0.001]
[1771022900962,3.34969238,2051.4,2050.9,0.001]
[1771022903863,0.45601226,2051.3,2050.9,0.001]
[1771022904171,0.45601226,2051.2,2050.9,0.001]
[1771022904366,0.45601226,2051.2,2050.7,0.001]
[1771022904567,0.45601226,2051.0,2050.4,0.001]
[1771022904786,0.45601226,2050.8,2050.0,0.001]
[1771022905788,0.45601226,2050.6,2050.0,0.001]
[1771022906485,0.45601226,2050.6,2050.1,0.001]
[1771022910181,1.21907877,2050.8,2050.1,0.001]
[1771022910383,2.91004389,2050.7,2050.2,0.48603827]
[1771022910567,2.91004389,2050.6,2050.2,0.48603827]
[1771022910767,2.90202506,2050.9,2050.2,0.48603827]
[1771022910968,2.91005731,2050.8,2050.2,0.48603827]
[1771022911188,2.91005731,2050.7,2050.2,0.48603827]
[1771022911499,2.91005731,2050.6,2050.2,0.48603827]
[1771022911674,3.36963613,2050.9,2050.2,0.48603827]
[1771022911993,2.90969892,2050.8,2050.2,0.48603827]
[1771022912300,2.90969892,2050.7,2050.2,0.48603827]
[1771022912487,2.90969892,2050.6,2050.2,0.48603827]
[1771022912673,2.15061107,2050.9,2050.2,0.48603827]
[1771022912867,2.90941004,2050.8,2050.2,0.48603827]
[1771022913094,2.90941004,2050.7,2050.2,0.48603827]
[1771022913295,1.683,2050.9,2050.2,0.48603827]
[1771022913496,2.90912933,2050.8,2050.2,0.48603827]
[1771022913696,1.683,2050.9,2050.2,0.48603827]
[1771022913697,2.90912933,2050.7,2050.2,0.48603827]
[1771022913998,2.15061107,2050.9,2050.2,0.48603827]
[1771022914297,2.90913013,2050.8,2050.2,0.48603827]
[1771022914519,2.90913013,2050.7,2050.2,0.48603827]
[1771022914682,2.15061107,2050.9,2050.2,0.48603827]
[1771022914884,2.90889146,2050.8,2050.2,0.48603827]
[1771022915094,2.90889146,2050.7,2050.2,0.48603827]
[1771022915310,0.46761107,2050.8,2050.2,0.48603827]
[1771022915484,2.9086467,2050.7,2050.2,0.48603827]
[1771022915683,0.46761107,2050.8,2050.2,0.001]
[1771022915882,2.90864609,2050.7,2050.2,0.001]
[1771022916083,0.46761107,2050.8,2050.2,0.001]
[1771022916287,2.90865621,2050.7,2050.2,0.001]
[1771022916492,0.46761107,2050.8,2050.2,0.001]
[1771022916696,2.90873623,2050.7,2050.2,0.001]
[1771022916898,0.46761107,2050.8,2050.2,0.001]
[1771022917103,2.90864861,2050.7,2050.2,0.001]
[1771022917405,0.46761107,2050.8,2050.2,0.001]
[1771022917701,2.90865781,2050.7,2050.2,0.001]
[1771022918002,0.46761107,2050.8,2050.2,0.001]
[1771022918178,2.9087434,2050.7,2050.2,0.001]
[1771022918377,0.46761107,2050.8,2050.2,0.001]
[1771022918601,2.90871907,2050.7,2050.2,0.001]
[1771022918802,0.46761107,2050.8,2050.2,0.001]
[1771022918993,2.90871858,2050.7,2050.2,0.001]
[1771022919174,0.46761107,2050.8,2050.2,0.001]
[1771022919376,2.90868003,2050.7,2050.2,0.001]
[1771022919605,0.46761107,2050.8,2050.2,0.001]
[1771022919802,2.908756,2050.7,2050.2,0.001]
[1771022920013,0.46761107,2050.8,2050.2,0.001]
[1771022920309,2.90875461,2050.7,2050.2,0.001]
[1771022920486,0.46761107,2050.8,2050.2,0.001]
[1771022920678,2.9088403,2050.7,2050.2,0.001]
[1771022920886,2.9088403,2050.6,2050.2,0.001]
[1771022921227,0.4870389,2051.0,2050.2,0.48474609]
[1771022921539,2.1730389,2051.4,2050.5,0.48374609]
[1771022924110,1.686,2051.4,2050.5,0.48374609]
[1771022925214,0.0011,2051.0,2050.6,0.48374609]
[1771022933889,0.0011,2051.0,2050.7,0.48374609]
[1771022934587,0.0011,2051.2,2050.7,0.48374609]
[1771022937026,0.0011,2051.2,2050.8,0.48374609]
[1771022942323,0.0011,2051.2,2050.8,1.56674609]
[1771022943222,0.0011,2051.2,2050.8,1.083]
[1771022944124,0.47660492,2051.2,2050.8,1.083]
[1771022944324,0.47660492,2051.2,2050.4,2.71732967]
[1771022944543,0.47660492,2051.2,2050.2,1.56132967]
[1771022944899,7.71338713,2051.1,2050.2,1.56132967]
[1771022945222,0.47550492,2051.0,2050.2,1.084]
[1771022946425,0.47550492,2051.1,2050.2,1.084]
[1771022946595,0.47550492,2051.1,2050.3,1.69666342]
[1771022947011,0.47550492,2051.1,2050.3,0.47732967]
[1771022949027,0.47550492,2051.1,2050.2,1.084]
[1771022949532,0.47550492,2051.1,2050.2,1.56132967]
[1771022952813,0.47550492,2051.1,2050.3,0.47732967]
[1771022966751,0.47550492,2051.1,2050.3,0.45820016]
[1771022966959,0.47550492,2051.1,2050.4,0.45820016]
[1771022971958,0.5006708,2051.2,2050.4,0.45820016]
[1771022972456,0.5006708,2051.2,2050.5,0.48374772]
[1771022975057,0.0011,2051.2,2050.6,0.48374772]
[1771022985665,0.0011,2051.2,2050.6,1.7028969]
[1771022985849,0.0011,2051.2,2050.7,0.47904561]
[1771022987334,0.4756699,2051.2,2050.5,1.2191663]
[1771022987534,0.4756699,2051.2,2050.5,1.69821191]
[1771022987768,0.4756699,2051.2,2050.6,0.47904561]
[1771022988639,0.0011,2051.2,2050.6,0.47904561]
[1771022990366,0.0011,2051.2,2050.7,0.47904561]
[1771022991138,0.4756699,2051.2,2050.6,1.56004561]
[1771022991455,0.0011,2051.2,2050.7,0.47904561]
[1771022997755,0.4756699,2051.2,2050.6,1.081]
[1771022997985,0.0011,2051.2,2050.6,1.56004561]
[1771022998170,0.0011,2051.2,2050.7,0.47904561]
[1771022998375,0.0011,2051.4,2050.9,0.47904561]
[1771022999270,0.0011,2051.4,2051.0,0.47904561]
[1771022999666,0.0011,2051.4,2051.0,1.56504561]
[1771023001079,0.0011,2051.4,2051.1,0.48253476]
[1771023001570,0.0011,2051.4,2051.0,1.086]
[1771023004291,0.0011,2051.4,2051.0,1.56853476]
[1771023005899,0.48969851,2051.4,2051.0,1.086]
[1771023010662,0.48859851,2051.2,2050.6,1.093]
[1771023011269,0.0011,2051.4,2050.8,0.48253476]
[1771023011472,2.90668758,2051.3,2050.8,0.48253476]
[1771023011670,0.0011,2051.4,2050.8,0.48253476]
[1771023011877,2.90664693,2051.3,2050.8,0.48253476]
[1771023012081,0.0011,2051.4,2050.8,0.48253476]
[1771023012399,2.90677425,2051.3,2050.8,0.48253476]
[1771023012697,0.0011,2051.4,2050.8,0.48253476]
[1771023012996,2.90664318,2051.3,2050.8,0.48253476]
[1771023013191,0.0011,2051.4,2050.8,0.48253476]
[1771023013398,2.90687485,2051.3,2050.8,0.48253476]
[1771023013591,0.0011,2051.4,2050.8,0.48253476]
[1771023013800,2.90687597,2051.3,2050.8,0.48253476]
[1771023014004,0.0011,2051.4,2050.8,0.48253476]
[1771023014180,2.90689217,2051.3,2050.8,0.48253476]
[1771023014383,0.0011,2051.4,2050.8,0.48253476]
[1771023014602,2.90699794,2051.3,2050.8,0.48253476]
[1771023014818,0.0011,2051.4,2050.8,0.48253476]
[1771023015024,2.90699788,2051.3,2050.8,0.48253476]
[1771023015192,0.0011,2051.4,2050.8,0.48253476]
[1771023015513,2.90711839,2051.3,2050.8,0.48253476]
[1771023015718,0.48969851,2051.4,2050.8,0.48253476]
[1771023015922,2.90705942,2051.3,2050.8,0.48253476]
[1771023016121,0.48969851,2051.4,2050.8,0.48253476]
[1771023016325,2.90719718,2051.3,2050.8,0.48253476]
[1771023016515,0.48969851,2051.4,2050.8,0.48253476]
[1771023016811,2.90720748,2051.3,2050.8,0.48253476]
[1771023017011,0.48969851,2051.4,2050.8,0.48253476]
[1771023017212,2.90719862,2051.3,2050.8,0.48253476]
[1771023017423,0.48969851,2051.4,2050.8,0.48253476]
[1771023017723,0.0011,2051.4,2050.9,0.48253476]
[1771023018595,0.0011,2051.4,2051.0,1.1]
[1771023019728,0.0011,2051.4,2051.0,1.58253476]
[1771023025333,0.0011,2051.4,2051.0,1.1]
[1771023028223,0.48969851,2051.4,2051.0,1.1]
[1771023031562,2.90956326,2051.3,2051.0,1.1]
[1771023031738,0.48969851,2051.4,2051.0,1.1]
[1771023032038,2.90956139,2051.3,2051.0,1.1]
[1771023032236,0.0011,2051.4,2051.0,1.1]
[1771023032425,0.0011,2051.4,2051.1,0.4680699]
[1771023034148,0.0011,2051.4,2051.0,1.5680699]
[1771023034982,0.0011,2051.4,2051.1,0.4680699]
[1771023035132,0.0011,2051.5,2051.2,8.17808159]
[1771023035448,0.0011,2051.7,2051.2,8.17808159]
[1771023035654,2.90975236,2051.6,2051.2,8.17808159]
[1771023035840,2.90975236,2051.6,2051.0,2.31889841]
[1771023035841,0.0011,2051.9,2051.5,0.4680699]
[1771023036151,0.49927504,2052.1,2051.7,0.4680699]
[1771023036152,0.0011,2052.1,2051.7,0.4680699]
[1771023037857,0.49927504,2052.1,2051.6,7.71001169]
[1771023038246,0.49927504,2052.1,2051.5,2.33258441]
[1771023038648,0.49927504,2052.1,2051.5,1.114]
[1771023039656,0.49927504,2052.1,2051.6,1.118]
[1771023040036,0.0011,2052.1,2051.7,0.45860546]
[1771023041034,0.4605919,2052.3,2051.6,1.118]
[1771023045049,0.0011,2052.3,2051.7,0.45860546]
[1771023045249,0.4605919,2052.3,2051.7,0.45860546]
[1771023045759,0.0011,2052.3,2051.9,0.45860546]
[1771023047268,0.0011,2052.6,2052.2,8.16861715]
[1771023047442,0.0011,2052.8,2052.4,7.71001169]
[1771023047642,0.0011,2052.8,2052.3,2.33814549]
[1771023048051,0.0011,2052.8,2052.3,2.79675095]
[1771023049969,0.4594919,2053.3,2052.4,0.45860546]
[1771023050160,0.4605919,2053.2,2052.4,0.45860546]
[1771023051969,0.4605919,2053.2,2052.5,0.45860546]
[1771023054146,0.4605919,2053.2,2052.5,1.67663015]
[1771023054576,0.4605919,2053.2,2052.6,0.45860546]
[1771023057284,0.4605919,2053.2,2052.6,1.67656617]
[1771023057486,0.4605919,2053.2,2052.6,0.45860546]
[1771023058978,0.4605919,2053.2,2052.4,9.38665929]
[1771023059190,0.0011,2053.2,2052.6,0.45860546]
[1771023061590,0.0011,2053.2,2052.7,0.46219545]
[1771023063900,0.0011,2053.2,2052.7,1.68010351]
[1771023064096,0.0011,2053.2,2052.8,0.46219545]
[1771023064310,0.0011,2053.5,2053.1,0.46219545]
[1771023064482,0.0011,2053.5,2053.2,8.17220714]
[1771023064688,0.0011,2053.5,2053.3,1.129]
[1771023066277,0.0011,2053.7,2053.3,1.59119545]
[1771023066872,0.46519446,2053.7,2053.3,1.59119545]
[1771023067078,0.46409446,2053.6,2053.0,1.132]
[1771023067801,0.46409446,2053.6,2052.9,1.132]
[1771023072109,0.46409446,2053.5,2052.7,0.001]
[1771023072328,0.46409446,2053.5,2052.7,1.132]
[1771023073988,0.46409446,2053.5,2052.7,0.001]